fUSD/lending_fUSD_20260624
["ID","MTS","AMOUNT","RATE_DAILY","PERIOD"]
[426329340,1782310183000,-500.0,0.00012999,2]
[426329339,1782310183000,-500.0,0.00012999,2]
[426329338,1782310183000,-500.0,0.00012999,2]
[426329337,1782310183000,-366.92730748,0.00012999,2]
[426329350,1782310183000,-15844.9030907,0.00013,2]
[426329343,1782310183000,-500.0,0.00012999,2]
[426329352,1782310183000,-166.66,0.00013099,2]
[426329360,1782310183000,-166.66,0.00013909,2]
[426329351,1782310183000,-216.42324807,0.00013004,2]
[426329353,1782310183000,-170.31,0.00013292,2]
[426329367,1782310183000,-200.0,0.00014289,2]
[426329366,1782310183000,-166.66,0.00014179,2]
[426329365,1782310183000,-217.5116868,0.00014143,7]
[426329363,1782310183000,-160.0,0.00014006,2]
[426329364,1782310183000,-160.0,0.00014007,2]
[426329368,1782310183000,-250.0,0.00014289,2]
[426329362,1782310183000,-762.102482,0.00014,2]
[426329361,1782310183000,-1025.71,0.00013919,2]
[426329358,1782310183000,-200.0,0.00013699,2]
[426329357,1782310183000,-166.66,0.00013639,2]
[426329355,1782310183000,-217.5116868,0.00013469,7]
[426329356,1782310183000,-164.38636182,0.00013469,7]
[426329354,1782310183000,-166.66,0.00013369,2]
[426329359,1782310183000,-217.5116868,0.00013739,7]
[426329369,1782310190000,190.51562,0.00014,2]
[426329371,1782310213000,-600.0,0.0001429,2]
[426329370,1782310213000,-600.0,0.0001429,2]
[426329372,1782310213000,-600.0,0.0001429,2]
[426329374,1782310213000,-300.0,0.0001429,2]
[426329373,1782310213000,-600.0,0.0001429,2]
[426329375,1782310213000,-300.0,0.0001429,2]
[426329376,1782310213000,-5.07891304,0.0001429,2]
[426329398,1782310231000,-313.0,0.0001429,2]
[426329403,1782310231000,-200.0,0.0001429,2]
[426329405,1782310231000,-500.0,0.00014318,2]
[426329406,1782310231000,-500.0,0.00014318,2]
[426329415,1782310231000,-1000.0,0.00014544,2]
[426329413,1782310231000,-1000.0,0.00014544,2]
[426329416,1782310231000,-1000.0,0.00014544,2]
[426329397,1782310231000,-311.0,0.0001429,2]
[426329414,1782310231000,-1000.0,0.00014544,2]
[426329417,1782310231000,-1000.0,0.00014544,2]
[426329407,1782310231000,-497.15029987,0.00014427,2]
[426329410,1782310231000,-1000.0,0.00014544,2]
[426329409,1782310231000,-2978.15,0.00014544,2]
[426329418,1782310231000,-1000.0,0.00014544,2]
[426329400,1782310231000,-200.0,0.0001429,2]
[426329388,1782310231000,-392.34219634,0.0001429,2]
[426329402,1782310231000,-200.0,0.0001429,2]
[426329395,1782310231000,-316.0,0.0001429,2]
[426329396,1782310231000,-321.0,0.0001429,2]
[426329401,1782310231000,-200.0,0.0001429,2]
[426329394,1782310231000,-150.35363107,0.0001429,2]
[426329404,1782310231000,-799.65285813,0.000143,2]
[426329393,1782310231000,-310.0,0.0001429,2]
[426329390,1782310231000,-250.0,0.0001429,2]
[426329389,1782310231000,-150.0,0.0001429,2]
[426329391,1782310231000,-250.0,0.0001429,2]
[426329392,1782310231000,-315.0,0.0001429,2]
[426329387,1782310231000,-300.0,0.0001429,2]
[426329386,1782310231000,-294.92108696,0.0001429,2]
[426329411,1782310231000,-1000.0,0.00014544,2]
[426329399,1782310231000,-150.0,0.0001429,2]
[426329408,1782310231000,-500.0,0.00014544,2]
[426329464,1782310231000,-500.0,0.00014999,2]
[426329419,1782310231000,-1000.0,0.00014544,2]
[426329480,1782310231000,-64140.33521712,0.00015,2]
[426329474,1782310231000,-500.0,0.00014999,2]
[426329478,1782310231000,-52229.26706194,0.00015,2]
[426329476,1782310231000,-499986.56520751,0.00015,2]
[426329472,1782310231000,-500.0,0.00014999,2]
[426329470,1782310231000,-500.0,0.00014999,2]
[426329466,1782310231000,-500.0,0.00014999,2]
[426329468,1782310231000,-500.0,0.00014999,2]
[426329462,1782310231000,-500.0,0.00014999,2]
[426329448,1782310231000,-1000.0,0.00014544,2]
[426329444,1782310231000,-1000.0,0.00014544,2]
[426329412,1782310231000,-1000.0,0.00014544,2]
[426329452,1782310231000,-1000.0,0.00014544,2]
[426329456,1782310231000,-400.0,0.00014544,2]
[426329458,1782310231000,-217.5116868,0.00014547,7]
[426329442,1782310231000,-1000.0,0.00014544,2]
[426329460,1782310231000,-200.13206059,0.000149,2]
[426329421,1782310231000,-1000.0,0.00014544,2]
[426329422,1782310231000,-1000.0,0.00014544,2]
[426329420,1782310231000,-1000.0,0.00014544,2]
[426329446,1782310231000,-1000.0,0.00014544,2]
[426329434,1782310231000,-1000.0,0.00014544,2]
[426329426,1782310231000,-1000.0,0.00014544,2]
[426329430,1782310231000,-1000.0,0.00014544,2]
[426329424,1782310231000,-1000.0,0.00014544,2]
[426329432,1782310231000,-1000.0,0.00014544,2]
[426329436,1782310231000,-1000.0,0.00014544,2]
[426329438,1782310231000,-1000.0,0.00014544,2]
[426329440,1782310231000,-1000.0,0.00014544,2]
[426329454,1782310231000,-1000.0,0.00014544,2]
[426329450,1782310231000,-1000.0,0.00014544,2]
[426329428,1782310231000,-1000.0,0.00014544,2]
[426329495,1782310232000,-438.4,0.00015,2]
[426329492,1782310232000,-338.58,0.00015,2]
[426329490,1782310232000,-1326.81698699,0.00015,2]
[426329488,1782310232000,-339.86301301,0.00015,2]
[426329485,1782310232000,-3200.41564869,0.00015,2]
[426329483,1782310232000,-830.02330158,0.00015,2]
[426329551,1782310237000,-319.0,0.0001429,2]
[426329552,1782310237000,-151.0,0.0001429,2]
[426329554,1782310237000,-551.46317321,0.00015,2]
[426329555,1782310237000,-4135.41251223,0.00015,2]
[426329553,1782310237000,-874.49,0.00015,2]
[426329557,1782310238000,-279.33883483,0.00015,2]
[426329558,1782310238000,-6279.48720301,0.00015,2]
[426329556,1782310238000,-1162.86020826,0.00015,2]
[426329559,1782310238000,-8684.41738031,0.00015,2]
[426329565,1782310240000,-1694.44533778,0.00015,2]
[426329564,1782310240000,-34258.64583502,0.00015,2]
[426329563,1782310240000,-153501.53779294,0.00015,2]
[426329562,1782310240000,-1165.1621778,0.00015,2]
[426329568,1782310242000,-151.0,0.0001429,2]
[426329569,1782310242000,-6587.85043978,0.00015,2]
[426329570,1782310242000,-15339.25,0.00015,2]
[426329575,1782310243000,-2375.81577489,0.00015,2]
[426329576,1782310243000,-5572.26531077,0.00015,2]
[426329573,1782310243000,-290.0,0.00015,2]
[426329574,1782310243000,-454.40811811,0.00015,2]
[426329571,1782310243000,-1466.56611655,0.00015,2]
[426329572,1782310243000,-355.5841957,0.00015,2]
[426329608,1782310245000,-33296.50000005,0.00015,2]
[426329613,1782310246000,-1783.65937132,0.00015,2]
[426329611,1782310246000,-799.4621888,0.00015,2]
[426329612,1782310246000,-509.56010659,0.00015,2]
[426329609,1782310246000,-1044.02217141,0.00015,2]
[426329610,1782310246000,-10563.65030568,0.00015,2]
[426329614,1782310246000,-470405.44893764,0.00015,2]
[426329699,1782310295000,347.13536095,0.00011432,2]
[426329700,1782310876000,16.82118884,0.0001,2]
[426329703,1782311071000,-200.0,0.0001,2]
[426329709,1782311381000,443.79,0.0002863,120]
[426329743,1782311426000,-500.0,0.00010899,2]
[426329781,1782311431000,-253.46543089,0.000109,2]
[426329779,1782311431000,-429.6033471,0.00010899,2]
[426329782,1782311431000,-73.64263042,0.000109,2]
[426329784,1782311431000,-811.50471421,0.000109,2]
[426329780,1782311431000,-672.89193869,0.000109,2]
[426329783,1782311431000,-1006.37513165,0.000109,2]
[426329785,1782311431000,-2238.12802373,0.000109,2]
[426329790,1782311431000,-250.0,0.00011989,2]
[426329788,1782311431000,-500.0,0.00011,2]
[426329795,1782311431000,-1000.0,0.00013367,2]
[426329794,1782311431000,-216.42324807,0.00013367,2]
[426329793,1782311431000,-242.81,0.00013311,2]
[426329786,1782311431000,-150.0,0.0001095,2]
[426329787,1782311431000,-200.0,0.00011,2]
[426329789,1782311431000,-850.0,0.00011,2]
[426329791,1782311431000,-250.0,0.00012,2]
[426329842,1782311432000,-150.0,0.00014,2]
[426329846,1782311432000,-151.0,0.00014,2]
[426329850,1782311432000,-150.0,0.00014,2]
[426329852,1782311432000,-151.0,0.00014,2]
[426329855,1782311432000,-151.0,0.00014,2]
[426329848,1782311432000,-150.0,0.00014,2]
[426329844,1782311432000,-151.0,0.00014,2]
[426329867,1782311432000,-152.0,0.00014289,2]
[426329868,1782311432000,-150.0,0.00014289,2]
[426329857,1782311432000,-150.0,0.00014,2]
[426329858,1782311432000,-1000.0,0.00014,2]
[426329859,1782311432000,-166.66,0.00014212,2]
[426329861,1782311432000,-150.0,0.00014289,2]
[426329865,1782311432000,-150.0,0.00014289,2]
[426329864,1782311432000,-151.0,0.00014289,2]
[426329862,1782311432000,-151.0,0.00014289,2]
[426329866,1782311432000,-151.0,0.00014289,2]
[426329869,1782311432000,-500.0,0.00014291,2]
[426329840,1782311432000,-151.0,0.00014,2]
[426329835,1782311432000,-151.0,0.00014,2]
[426329838,1782311432000,-151.0,0.00014,2]
[426329833,1782311432000,-151.0,0.00014,2]
[426329803,1782311432000,-166.66,0.00013649,2]
[426329801,1782311432000,-1024.44,0.000136,2]
[426329798,1782311432000,-2383.08324807,0.000134,2]
[426329796,1782311432000,-1000.0,0.00013367,2]
[426329799,1782311432000,-1024.44,0.00013548,2]
[426329797,1782311432000,-166.66,0.00013367,2]
[426329805,1782311432000,-166.66,0.000137,2]
[426329808,1782311432000,-203.56,0.00013722,2]
[426329810,1782311432000,-200.0,0.00013742,2]
[426329824,1782311432000,-356.7158017,0.00013929,2]
[426329816,1782311432000,-735.94,0.000138,2]
[426329822,1782311432000,-166.49397064,0.00013929,2]
[426329814,1782311432000,-178.84,0.00013772,2]
[426329818,1782311432000,-389.84961275,0.00013929,2]
[426329812,1782311432000,-153.54,0.00013746,2]
[426329820,1782311432000,-260.29367881,0.00013929,2]
[426329827,1782311432000,-166.66,0.0001393,2]
[426329829,1782311432000,-150.0,0.00013999,2]
[426329831,1782311432000,-250.0,0.00014,2]
[426329871,1782311432000,-2532.66,0.000143,2]
[426329874,1782311432000,-152.0,0.00014344,2]
[426329860,1782311432000,-500.0,0.00014289,2]
[426329881,1782311432000,-409.50027783,0.00014444,2]
[426329896,1782311432000,-502.31006982,0.00014899,2]
[426329895,1782311432000,-500.0,0.00014899,2]
[426329903,1782311432000,-500.0,0.00014899,2]
[426329899,1782311432000,-514.3852568,0.00014899,2]
[426329901,1782311432000,-500.0,0.00014899,2]
[426329906,1782311432000,-179.25748836,0.000149,2]
[426329905,1782311432000,-151.0,0.000149,2]
[426329880,1782311432000,-409.50027783,0.00014444,2]
[426329902,1782311432000,-1000.0,0.00014899,2]
[426329900,1782311432000,-500.0,0.00014899,2]
[426329908,1782311432000,-1073.14519374,0.000149,2]
[426329907,1782311432000,-1000.0,0.000149,2]
[426329912,1782311432000,-435.27477932,0.00014999,2]
[426329910,1782311432000,-500.0,0.00014999,2]
[426329909,1782311432000,-6028.8652589,0.00014995,2]
[426329911,1782311432000,-156.74252702,0.00014999,2]
[426329914,1782311432000,-3267.15313304,0.00015,2]
[426329913,1782311432000,-273889.69715994,0.00015,2]
[426329915,1782311432000,-12009.50581941,0.00015,2]
[426329897,1782311432000,-456.55695929,0.00014899,2]
[426329898,1782311432000,-514.3789797,0.00014899,2]
[426329904,1782311432000,-224.91109289,0.000149,2]
[426329892,1782311432000,-994.12817773,0.00014872,2]
[426329894,1782311432000,-4628.20023755,0.00014872,2]
[426329879,1782311432000,-409.50027783,0.00014444,2]
[426329875,1782311432000,-303.00030866,0.00014344,2]
[426329877,1782311432000,-409.50027783,0.00014444,2]
[426329878,1782311432000,-409.50027783,0.00014444,2]
[426329876,1782311432000,-409.50027783,0.00014444,2]
[426329872,1782311432000,-4186.6412,0.00014344,2]
[426329870,1782311432000,-160.0,0.00014296,2]
[426329893,1782311432000,-2623.51998968,0.00014872,2]
[426329873,1782311432000,-6830.8209,0.00014344,2]
[426329882,1782311432000,-409.50027783,0.00014444,2]
[426329883,1782311432000,-409.50027783,0.00014444,2]
[426329891,1782311432000,-2500.0,0.000148,2]
[426329890,1782311432000,-2000.0,0.000148,2]
[426329886,1782311432000,-166.66,0.00014493,2]
[426329884,1782311432000,-409.50027783,0.00014444,2]
[426329863,1782311432000,-151.0,0.00014289,2]
[426329888,1782311432000,-1000.0,0.000145,2]
[426329885,1782311432000,-409.50027783,0.00014444,2]
[426329889,1782311432000,-166.66,0.00014774,2]
[426329887,1782311432000,-6212.4395651,0.000145,2]
[426329978,1782311439000,-3050.0,0.00015,2]
[426329977,1782311439000,-2249.99919722,0.00015,2]
[426329979,1782311440000,-275.24886438,0.00015,2]
[426329982,1782311440000,-918.0,0.00015,2]
[426329981,1782311440000,-367220.44086618,0.00015,2]
[426329980,1782311440000,-807.438462,0.00015,2]
[426329994,1782311444000,-503.7764,0.00015,2]
[426329993,1782311444000,-614.97831193,0.00015,2]
[426330016,1782311445000,-183762.37315463,0.00015,2]
[426330021,1782311445000,-541.70750703,0.00015,2]
[426330018,1782311445000,-5239.67292922,0.00015,2]
[426330039,1782311446000,-613.66,0.00015,2]
[426330038,1782311446000,-293.47302106,0.00015,2]
[426330037,1782311446000,-2784.14126701,0.00015,2]
[426330036,1782311446000,-10229.47673347,0.00015,2]
[426330035,1782311446000,-30500.0,0.00015,2]
[426330033,1782311446000,-3792.08898341,0.00015,2]
[426330034,1782311446000,-500.0,0.00015,2]
[426330065,1782311958000,-199.5,0.00010897,2]
[426330066,1782311958000,-216.42324807,0.00010903,2]
[426330171,1782312387000,-166.66,0.00012961,2]
[426330178,1782312435000,178.0,0.00028767,120]
[426330179,1782312458000,12000.0,0.00028767,120]
[426330180,1782312498000,170.27,0.00010674,2]
[426330182,1782312546000,-317.0,0.00013004,2]
[426330181,1782312546000,-174.55788957,0.000129,2]
[426330183,1782312547000,-146.60120903,0.00013004,2]
[426330186,1782312547000,-309.0,0.00013051,2]
[426330185,1782312547000,-150.0,0.00013029,2]
[426330187,1782312547000,-319.0,0.00013051,2]
[426330184,1782312547000,-172.39879097,0.00013004,2]
[426330190,1782312547000,-500.0,0.00013233,2]
[426330191,1782312547000,-500.0,0.00013233,2]
[426330189,1782312547000,-500.0,0.00013233,2]
[426330193,1782312547000,-88.93294975,0.00013233,2]
[426330192,1782312547000,-500.0,0.00013233,2]
[426330188,1782312547000,-150.0,0.00013201,2]
[426330201,1782312631000,-500.0,0.00013232,2]
[426330211,1782312631000,-151.0,0.00013737,2]
[426330200,1782312631000,-811.11394977,0.00011383,2]
[426330203,1782312631000,-314.0,0.00013233,2]
[426330204,1782312631000,-310.0,0.00013233,2]
[426330205,1782312631000,-166.66,0.00013234,2]
[426330207,1782312631000,-321.0,0.00013246,2]
[426330202,1782312631000,-313.0,0.00013232,2]
[426330206,1782312631000,-321.0,0.00013246,2]
[426330209,1782312631000,-166.66,0.00013506,2]
[426330208,1782312631000,-316.0,0.00013246,2]
[426330210,1782312631000,-200.0,0.00013699,2]
[426330212,1782312631000,-318.0,0.00013737,2]
[426330222,1782312631000,-242.81,0.00013936,2]
[426330218,1782312631000,-841.7520822,0.00013819,2]
[426330213,1782312631000,-309.0,0.00013737,2]
[426330221,1782312631000,-967.24,0.00013912,2]
[426330219,1782312631000,-1804.48238768,0.00013819,2]
[426330217,1782312631000,-80.29436715,0.00013779,2]
[426330214,1782312631000,-150.0,0.00013737,2]
[426330215,1782312631000,-313.0,0.00013737,2]
[426330216,1782312631000,-86.36563285,0.00013779,2]
[426330220,1782312631000,-416.91467507,0.00013819,2]
[426330230,1782312632000,-17687.13462044,0.00014144,2]
[426330223,1782312632000,-250.0,0.00014,2]
[426330225,1782312632000,-181.47,0.00014068,2]
[426330231,1782312632000,-3765.97484225,0.00014144,2]
[426330224,1782312632000,-166.66,0.00014052,2]
[426330226,1782312632000,-207.53,0.00014119,2]
[426330228,1782312632000,-439905.52634058,0.00014144,2]
[426330229,1782312632000,-32763.34718557,0.00014144,2]
[426330233,1782312632000,-1586.26738872,0.00014144,2]
[426330232,1782312632000,-1197.03439799,0.00014144,2]
[426330227,1782312632000,-2791.02415942,0.00014144,2]
[426330243,1782312638000,-405.51070337,0.00014144,2]
[426330242,1782312638000,-2874.47444344,0.00014144,2]
[426330241,1782312638000,-483.19870993,0.00014144,2]
[426330251,1782312640000,-399.51758185,0.00014144,2]
[426330250,1782312640000,-2250.0023856,0.00014144,2]
[426330257,1782312645000,-708.38046963,0.00014144,2]
[426330259,1782312646000,-3623.13915649,0.00014144,2]
[426330261,1782312646000,-6488.45965397,0.00014144,2]
[426330260,1782312646000,-848.30650319,0.00014144,2]
[426330274,1782312647000,-3334.17450762,0.00014144,2]
[426330273,1782312647000,-7358.24,0.00014144,2]
[426330275,1782312647000,-484.60500001,0.00014144,2]
[426330272,1782312647000,-908.24680481,0.00014144,2]
[426330276,1782312648000,-6367.38982369,0.00014144,2]
[426330277,1782312648000,-365.34335261,0.00014144,2]
[426330280,1782312744000,-151.0,0.00012939,2]
[426330284,1782313099000,-198.879535,0.00012874,2]
[426330340,1782313454000,-166.66,0.00012766,2]
[426330345,1782313810000,-158.64,0.00012829,2]
[426330370,1782313832000,-500.0,0.00013017,2]
[426330359,1782313832000,-272.98363389,0.00013,2]
[426330369,1782313832000,-560.17540815,0.00013017,2]
[426330368,1782313832000,-223.72734852,0.00013017,2]
[426330361,1782313832000,-145.3321633,0.00013,2]
[426330363,1782313832000,-150.0,0.00013016,2]
[426330362,1782313832000,-332.01,0.00013013,2]
[426330360,1782313832000,-170.6678367,0.00013,2]
[426330357,1782313832000,-236.14369787,0.00012939,2]
[426330365,1782313832000,-500.0,0.00013017,2]
[426330367,1782313832000,-276.27265148,0.00013017,2]
[426330364,1782313832000,-500.0,0.00013017,2]
[426330366,1782313832000,-500.0,0.00013017,2]
[426330371,1782313832000,-500.0,0.00013017,2]
[426330356,1782313832000,-170.75343602,0.00012939,2]
[426330355,1782313832000,-65.39026185,0.00012939,2]
[426330354,1782313832000,-2890.55,0.00012934,2]
[426330353,1782313832000,-1000.0,0.00012874,2]
[426330358,1782313832000,-41.01636611,0.00013,2]
[426330372,1782313832000,-500.0,0.00013017,2]
[426330373,1782313832000,-500.0,0.00013017,2]
[426330377,1782313832000,-500.0,0.00013017,2]
[426330389,1782313832000,-3600.53907284,0.00013018,2]
[426330388,1782313832000,-500.0,0.00013017,2]
[426330387,1782313832000,-500.0,0.00013017,2]
[426330386,1782313832000,-500.0,0.00013017,2]
[426330393,1782313832000,-166.66,0.00013034,2]
[426330391,1782313832000,-347.86092716,0.00013018,2]
[426330374,1782313832000,-500.0,0.00013017,2]
[426330397,1782313832000,-88.26417068,0.00013303,2]
[426330383,1782313832000,-500.0,0.00013017,2]
[426330385,1782313832000,-500.0,0.00013017,2]
[426330395,1782313832000,-302.25,0.00013044,2]
[426330376,1782313832000,-500.0,0.00013017,2]
[426330379,1782313832000,-500.0,0.00013017,2]
[426330380,1782313832000,-500.0,0.00013017,2]
[426330382,1782313832000,-500.0,0.00013017,2]
[426330381,1782313832000,-500.0,0.00013017,2]
[426330378,1782313832000,-500.0,0.00013017,2]
[426330375,1782313832000,-500.0,0.00013017,2]
[426330400,1782313832000,-78.39582932,0.00013303,2]
[426330405,1782313833000,-377.69800246,0.000135,2]
[426330402,1782313833000,-878.19008235,0.00013336,2]
[426330404,1782313833000,-113.83142854,0.000135,2]
[426330414,1782313833000,-610.42171838,0.00013843,2]
[426330406,1782313833000,-166.66,0.00013572,2]
[426330403,1782313833000,-166.67,0.00013447,2]
[426330410,1782313833000,-166.66,0.0001384,2]
[426330409,1782313833000,-200.0,0.00013699,2]
[426330417,1782313833000,-10557.53978348,0.00013843,2]
[426330412,1782313833000,-202505.18944079,0.00013843,2]
[426330408,1782313833000,-178.84,0.00013643,2]
[426330407,1782313833000,-862.54,0.00013603,2]
[426330440,1782313838000,-1000.0,0.00013944,2]
[426330443,1782313838000,-1000.0,0.00013944,2]
[426330450,1782313838000,-1244.197,0.00014042,2]
[426330448,1782313838000,-44683.1906,0.00013944,2]
[426330449,1782313838000,-36729.61742369,0.00014028,2]
[426330455,1782313838000,-2500.0,0.00014044,2]
[426330460,1782313838000,-2224.5779361,0.00014132,2]
[426330442,1782313838000,-1000.0,0.00013944,2]
[426330458,1782313838000,-255.0,0.00014123,2]
[426330452,1782313838000,-33326.4581,0.00014044,2]
[426330451,1782313838000,-939.00204454,0.00014044,2]
[426330441,1782313838000,-1000.0,0.00013944,2]
[426330446,1782313838000,-1000.0,0.00013944,2]
[426330447,1782313838000,-500.0,0.00013944,2]
[426330456,1782313838000,-166.66,0.00014109,2]
[426330439,1782313838000,-1000.0,0.00013944,2]
[426330445,1782313838000,-1000.0,0.00013944,2]
[426330444,1782313838000,-1000.0,0.00013944,2]
[426330436,1782313838000,-6053.61325682,0.00013944,2]
[426330437,1782313838000,-1000.0,0.00013944,2]
[426330435,1782313838000,-862.54,0.00013943,2]
[426330434,1782313838000,-300.0,0.000139,5]
[426330433,1782313838000,-432418.29374278,0.00013843,2]
[426330431,1782313838000,-3855.24301457,0.00013843,2]
[426330432,1782313838000,-3196.0,0.00013843,2]
[426330438,1782313838000,-1000.0,0.00013944,2]
[426330457,1782313838000,-1000.0,0.00014109,2]
[426330459,1782313838000,-61810.4386868,0.00014131,2]
[426330453,1782313838000,-4186.6412,0.00014044,2]
[426330486,1782313838000,-862.54,0.00014283,2]
[426330487,1782313838000,-500.0,0.00014343,2]
[426330484,1782313838000,-200.0,0.00014233,2]
[426330485,1782313838000,-200.0,0.00014233,2]
[426330483,1782313838000,-600.0,0.00014227,2]
[426330454,1782313838000,-10086.9126,0.00014044,2]
[426330482,1782313838000,-600.0,0.00014227,2]
[426330478,1782313838000,-300.0,0.00014227,2]
[426330476,1782313838000,-300.0,0.00014227,2]
[426330479,1782313838000,-600.0,0.00014227,2]
[426330480,1782313838000,-600.0,0.00014227,2]
[426330469,1782313838000,-500.0,0.00014144,2]
[426330473,1782313838000,-500.0,0.00014218,2]
[426330475,1782313838000,-300.0,0.00014227,2]
[426330481,1782313838000,-600.0,0.00014227,2]
[426330477,1782313838000,-300.0,0.00014227,2]
[426330472,1782313838000,-250.0,0.00014161,2]
[426330461,1782313838000,-598.71,0.00014144,2]
[426330464,1782313838000,-500.0,0.00014144,2]
[426330466,1782313838000,-151.0,0.00014144,2]
[426330465,1782313838000,-500.0,0.00014144,2]
[426330462,1782313838000,-500.0,0.00014144,2]
[426330463,1782313838000,-500.0,0.00014144,2]
[426330468,1782313838000,-500.0,0.00014144,2]
[426330471,1782313838000,-500.0,0.00014144,2]
[426330470,1782313838000,-500.0,0.00014144,2]
[426330474,1782313838000,-300.0,0.00014227,2]
[426330467,1782313838000,-500.0,0.00014144,2]
[426330503,1782313839000,-300.72911031,0.00014726,2]
[426330497,1782313839000,-700.62860155,0.000145,2]
[426330504,1782313839000,-391.67802536,0.000148,5]
[426330500,1782313839000,-600.0,0.000147,5]
[426330501,1782313839000,-500.0,0.00014726,2]
[426330498,1782313839000,-862.54,0.00014623,2]
[426330494,1782313839000,-1963.65545505,0.00014462,2]
[426330496,1782313839000,-1603.93,0.00014497,2]
[426330489,1782313839000,-500.0,0.00014343,2]
[426330499,1782313839000,-332.01,0.0001464,2]
[426330495,1782313839000,-3464.12098222,0.00014462,2]
[426330493,1782313839000,-744.08627603,0.00014462,2]
[426330490,1782313839000,-500.0,0.00014343,2]
[426330488,1782313839000,-500.0,0.00014343,2]
[426330491,1782313839000,-575.503723,0.00014343,2]
[426330492,1782313839000,-500.0,0.00014343,2]
[426330505,1782313839000,-508.32197464,0.000148,5]
[426330502,1782313839000,-199.27088969,0.00014726,2]
[426330506,1782313839000,-491.529431,0.0001485,2]
[426330521,1782313839000,-606.17365667,0.00014999,2]
[426330511,1782313839000,-500.0,0.00014976,2]
[426330524,1782313839000,-4461.06857084,0.00015,2]
[426330526,1782313839000,-304.9,0.00015,2]
[426330525,1782313839000,-5403.8167257,0.00015,2]
[426330523,1782313839000,-3002.53392223,0.00015,2]
[426330522,1782313839000,-692.0,0.00015,5]
[426330516,1782313839000,-172.45,0.00014999,2]
[426330519,1782313839000,-500.0,0.00014999,2]
[426330517,1782313839000,-500.0,0.00014999,2]
[426330520,1782313839000,-500.0,0.00014999,2]
[426330518,1782313839000,-500.0,0.00014999,2]
[426330527,1782313839000,-2399.91851468,0.00015,2]
[426330508,1782313839000,-15.50908046,0.000149,5]
[426330513,1782313839000,-500.0,0.00014976,2]
[426330512,1782313839000,-500.0,0.00014976,2]
[426330507,1782313839000,-1184.49091954,0.000149,5]
[426330509,1782313839000,-862.54,0.00014963,2]
[426330510,1782313839000,-500.0,0.00014976,2]
[426330515,1782313839000,-502.27247969,0.00014999,2]
[426330514,1782313839000,-294.89508092,0.0001499,2]
[426330531,1782313840000,-446.26987052,0.000138,2]
[426330660,1782313843000,-1755.47998047,0.000138,2]
[426330661,1782313843000,-7212.79613949,0.00015,2]
[426330673,1782313846000,-30500.0,0.00015,2]
[426330671,1782313846000,-1168.96796671,0.00015,2]
[426330672,1782313846000,-32020.74507328,0.00015,2]
[426330670,1782313846000,-1972.25800982,0.00015,2]
[426330684,1782314110000,-241.19825472,0.00013016,2]
[426330685,1782314166000,-72.80174528,0.00013016,2]
[426330688,1782314523000,-645.68,0.00012871,2]
[426330699,1782314877000,-166.66,0.00012064,2]
[426330701,1782314932000,-166.66,0.00012318,2]
[426330702,1782314986000,-224.79871125,0.00012318,2]
[426330754,1782315038000,-192.38,0.00012472,2]
[426330804,1782315040000,-1641.7674847,0.00012352,2]
[426330828,1782315040000,-153.0,0.00013015,2]
[426330822,1782315040000,-152.0,0.00013014,2]